bitfinex/quotes_BTCUSD_20250727
["timestamp","ask_amount","ask_price","bid_price","bid_amount"]
[1753576416039,0.67975752,118000.0,117990.0,0.3937618]
[1753576418694,0.3271796,118000.0,117990.0,0.56326769]
[1753576418949,0.002,118000.0,117990.0,0.99320692]
[1753576419867,0.001,118000.0,117990.0,0.99320692]
[1753576421009,0.37389355,118010.0,118000.0,0.21804016]
[1753576421155,0.36541991,118010.0,118000.0,0.67454122]
[1753576421379,0.36541991,118010.0,118000.0,0.70556529]
[1753576422009,0.35694649,118010.0,118000.0,0.70556529]
[1753576422603,0.35698563,118010.0,118000.0,0.70556529]
[1753576422810,0.01698563,118010.0,118000.0,0.70556529]
[1753576423019,0.36861833,118020.0,118010.0,0.20955087]
[1753576423245,0.37709125,118020.0,118010.0,0.55172793]
[1753576423458,0.38558891,118020.0,118010.0,0.55172793]
[1753576423658,0.35169766,118020.0,118010.0,0.57714863]
[1753576423871,0.4602335,118030.0,118020.0,0.2010628]
[1753576424080,0.64015436,118030.0,118020.0,0.66955972]
[1753576424717,0.47070592,118030.0,118020.0,0.66955972]
[1753576425189,0.35794368,118030.0,118020.0,0.68858578]
[1753576425369,0.35794368,118030.0,118020.0,0.71400411]
[1753576425584,0.36641567,118030.0,118020.0,0.70553141]
[1753576425804,0.36641567,118030.0,118020.0,0.69705863]
[1753576426044,0.36641567,118030.0,118020.0,0.68011286]
[1753576426243,0.38336015,118030.0,118020.0,0.68858592]
[1753576426472,0.38656007,118030.0,118020.0,0.68858592]
[1753576426689,0.38756,118030.0,118020.0,0.69705891]
[1753576427093,0.38686896,118030.0,118020.0,0.70553183]
[1753576427321,0.3780878,118030.0,118020.0,0.70553183]
[1753576427761,0.3770878,118030.0,118020.0,0.71400468]
[1753576427963,0.3770878,118030.0,118020.0,0.70553183]
[1753576428181,0.36861567,118030.0,118020.0,0.71400468]
[1753576428389,0.36861567,118030.0,118020.0,0.71400432]
[1753576428629,0.36861567,118030.0,118020.0,0.70553154]
[1753576428777,0.35694368,118030.0,118020.0,0.70553154]
[1753576429040,0.34847177,118030.0,118020.0,0.71400396]
[1753576429216,0.34847191,118030.0,118020.0,0.79000827]
[1753576429421,0.34847191,118030.0,118020.0,0.7984809]
[1753576429664,0.34847191,118030.0,118020.0,0.79000827]
[1753576429865,0.34847191,118030.0,118020.0,0.7984809]
[1753576430062,0.34847191,118030.0,118020.0,0.79000827]
[1753576430412,0.34847191,118030.0,118020.0,0.7984809]
[1753576430832,0.34847191,118030.0,118020.0,0.77306279]
[1753576431034,0.35694404,118030.0,118020.0,0.77306308]
[1753576431241,0.35694404,118030.0,118020.0,0.69705863]
[1753576431677,0.34847191,118030.0,118020.0,0.70553133]
[1753576431881,0.34847191,118030.0,118020.0,0.68858578]
[1753576432084,0.34847191,118030.0,118020.0,0.69705863]
[1753576432341,0.35694397,118030.0,118020.0,0.70553141]
[1753576432958,0.34847191,118030.0,118020.0,0.70553141]
[1753576433376,0.36014397,118030.0,118020.0,0.69705863]
[1753576433792,0.36014397,118030.0,118020.0,0.74713285]
[1753576434239,0.36014397,118030.0,118020.0,0.73866007]
[1753576434446,0.36014397,118030.0,118020.0,0.74713285]
[1753576434654,0.36014397,118030.0,118020.0,0.70553141]
[1753576434991,0.35167191,118030.0,118020.0,0.70553141]
[1753576435171,0.3601439,118030.0,118020.0,0.70553141]
[1753576436329,0.01167191,118030.0,118020.0,0.71400411]
[1753576436588,0.00847191,118030.0,118020.0,0.71400411]
[1753576437251,0.01154191,118030.0,118020.0,0.71400411]
[1753576437477,0.02001397,118030.0,118020.0,0.76555985]
[1753576437723,0.01154191,118030.0,118020.0,0.77403255]
[1753576438172,0.01154191,118030.0,118020.0,0.71400411]
[1753576439115,0.01154191,118030.0,118020.0,0.7140036]
[1753576440198,0.01154191,118030.0,118020.0,0.70553097]
[1753576440632,0.01154191,118030.0,118020.0,0.7140036]
[1753576441550,0.00847191,118030.0,118020.0,0.7140036]
[1753576441795,0.40848045,118040.0,118030.0,0.16944844]
[1753576441969,0.39464154,118040.0,118030.0,0.61539536]
[1753576442170,0.41894592,118040.0,118030.0,0.61539536]
[1753576442385,0.41894592,118040.0,118030.0,0.63234013]
[1753576442386,0.41894695,118040.0,118030.0,0.63234013]
[1753576442636,0.41894695,118040.0,118030.0,0.62386778]
[1753576442855,0.41894695,118040.0,118030.0,0.61539536]
[1753576443074,0.39500494,118040.0,118030.0,0.35424844]
[1753576443288,0.04753352,118040.0,118030.0,0.68873991]
[1753576443507,0.04753352,118040.0,118030.0,0.69721218]
[1753576443508,0.03169981,118040.0,118030.0,0.69721218]
[1753576443740,0.03069981,118040.0,118030.0,0.69721218]
[1753576443962,0.05454981,118040.0,118030.0,0.69721218]
[1753576444146,0.05454981,118040.0,118030.0,0.78168948]
[1753576444471,0.05454981,118040.0,118030.0,0.76474501]
[1753576444472,0.07249292,118040.0,118030.0,0.76474501]
[1753576444685,0.07249292,118040.0,118030.0,0.68026771]
[1753576444877,0.07149292,118040.0,118030.0,0.68026771]
[1753576445103,0.03917129,118040.0,118030.0,0.69721218]
[1753576445322,0.03917129,118040.0,118030.0,0.68873998]
[1753576445559,0.07886357,118040.0,118030.0,0.69721218]
[1753576446240,0.07886357,118040.0,118030.0,0.70568431]
[1753576446667,0.07039209,118040.0,118030.0,0.69721218]
[1753576447346,0.07039209,118040.0,118030.0,0.70568424]
[1753576447803,0.06192068,118040.0,118030.0,0.70568424]
[1753576448044,0.07039209,118040.0,118030.0,0.70568431]
[1753576448268,0.07041098,118040.0,118030.0,0.70568431]
[1753576448459,0.07041091,118040.0,118030.0,0.71415637]
[1753576449081,0.07041091,118040.0,118030.0,0.70568431]
[1753576449525,0.0868035,118040.0,118030.0,0.70568431]
[1753576449998,0.0629535,118040.0,118030.0,0.70568431]
[1753576451155,0.07142506,118040.0,118030.0,0.68873998]
[1753576451646,0.09527506,118040.0,118030.0,0.68873998]
[1753576451894,0.09527506,118040.0,118030.0,0.69721218]
[1753576452107,0.09527506,118040.0,118030.0,0.68873998]
[1753576452329,0.09527506,118040.0,118030.0,0.68026771]
[1753576452546,0.09527506,118040.0,118030.0,0.68141218]
[1753576452775,0.09527506,118040.0,118030.0,0.66446771]
[1753576452989,0.09527506,118040.0,118030.0,0.67293998]
[1753576453213,0.0868035,118040.0,118030.0,0.68141211]
[1753576454325,0.09527498,118040.0,118030.0,0.68141218]
[1753576454538,0.0868035,118040.0,118030.0,0.68988431]
[1753576454954,0.0868035,118040.0,118030.0,0.68141218]
[1753576455558,0.0629535,118040.0,118030.0,0.70568431]
[1753576456299,0.06295343,118040.0,118030.0,0.70568431]
[1753576456813,0.06295343,118040.0,118030.0,0.71415637]
[1753576457475,0.05141202,118040.0,118030.0,0.71415637]
[1753576457695,0.03247955,118040.0,118030.0,0.72624884]
[1753576457919,0.03247955,118040.0,118030.0,0.71415593]
[1753576458580,0.02455837,118040.0,118030.0,0.71664593]
[1753576459959,0.02455837,118040.0,118030.0,0.71764593]
[1753576460386,0.02455837,118040.0,118030.0,0.40109901]
[1753576460602,0.02455837,118040.0,118030.0,0.80312323]
[1753576461481,0.01590973,118040.0,118030.0,0.88760053]
[1753576461924,4.856e-05,118040.0,118030.0,0.88760053]
[1753576475293,4.856e-05,118040.0,118030.0,0.88511053]
[1753576478054,4.856e-05,118040.0,118030.0,0.56756361]
[1753576478262,4.856e-05,118040.0,118030.0,0.88511053]
[1753576478491,0.06692053,118060.0,118050.0,0.17789071]
[1753576478719,0.06892912,118060.0,118050.0,0.29813973]
[1753576478912,0.2383345,118060.0,118050.0,0.29813973]
[1753576480249,0.06892912,118060.0,118050.0,0.39946622]
[1753576480452,0.06992912,118060.0,118050.0,0.71701314]
[1753576480639,0.09649912,118060.0,118050.0,0.39946622]
[1753576481228,0.09649912,118060.0,118050.0,0.39099531]
[1753576481723,0.09749912,118060.0,118050.0,0.39099531]
[1753576481951,0.2669045,118060.0,118050.0,0.29813973]
[1753576482650,0.25743445,118060.0,118050.0,0.29813973]
[1753576482852,0.25643445,118060.0,118050.0,0.29813973]
[1753576484662,0.59643445,118060.0,118050.0,0.29813973]
[1753576486936,0.58796433,118060.0,118050.0,0.29813973]
[1753576488091,0.90551125,118060.0,118050.0,0.29813973]
[1753576488528,0.58796433,118060.0,118050.0,0.29813973]
[1753576489254,0.58796433,118060.0,118050.0,0.33145071]
[1753576489499,0.58796433,118060.0,118050.0,0.32297973]
[1753576489924,0.58796433,118060.0,118050.0,0.29813973]
[1753576492479,0.57945416,118060.0,118050.0,0.29813973]
[1753576494425,0.89700108,118060.0,118050.0,0.32147973]
[1753576494636,0.57945416,118060.0,118050.0,0.32147973]
[1753576494854,0.89700108,118060.0,118050.0,0.32147973]
[1753576496231,0.58801545,118060.0,118050.0,0.32147973]
[1753576496437,0.90556237,118060.0,118050.0,0.32147973]
[1753576497621,0.89709218,118060.0,118050.0,0.32147973]
[1753576499411,0.89709218,118060.0,118050.0,0.15206]
[1753576499631,0.89709218,118060.0,118050.0,0.02334]
[1753576499855,0.89709218,118060.0,118050.0,0.1523]
[1753576500781,0.57954526,118060.0,118050.0,0.1523]
[1753576500994,0.89709218,118060.0,118050.0,0.1523]
[1753576501445,0.89709218,118060.0,118050.0,0.32171973]
[1753576501666,0.87350218,118060.0,118050.0,0.32171973]
[1753576502388,0.87350218,118060.0,118050.0,0.1523]
[1753576510736,0.55595526,118060.0,118050.0,0.1523]
[1753576510932,0.85710218,118060.0,118050.0,0.1523]
[1753576511438,0.53955526,118060.0,118050.0,0.1523]
[1753576511658,0.85710218,118060.0,118050.0,0.1523]
[1753576513910,0.53955526,118060.0,118050.0,0.1523]
[1753576514327,0.85710218,118060.0,118050.0,0.1523]
[1753576517146,0.53955526,118060.0,118050.0,0.1523]
[1753576518366,0.85710218,118060.0,118050.0,0.1523]
[1753576520393,0.84050218,118060.0,118050.0,0.1523]
[1753576521634,0.52295526,118060.0,118050.0,0.1523]
[1753576523210,0.84050218,118060.0,118050.0,0.1523]
[1753576527449,0.85620218,118060.0,118050.0,0.02334]
[1753576527659,0.20889057,118050.0,118040.0,0.12884]
[1753576527883,0.65733749,118050.0,118040.0,0.12884]
[1753576528100,0.68309749,118050.0,118040.0,0.12884]
[1753576528762,0.0254138,118040.0,118030.0,0.72734223]
[1753576528977,0.0254138,118040.0,118030.0,0.70879223]
[1753576529421,0.03388536,118040.0,118030.0,0.70879223]
[1753576529611,0.03388536,118040.0,118030.0,0.73242223]
[1753576530195,0.03388536,118040.0,118030.0,0.75197964]
[1753576530721,0.03388536,118040.0,118030.0,0.7455078]
[1753576531046,0.04235699,118040.0,118030.0,0.71747862]
[1753576531240,0.03388536,118040.0,118030.0,0.71747862]
[1753576531665,0.03388536,118040.0,118030.0,0.71947862]
[1753576532878,0.04235699,118040.0,118030.0,0.71947862]
[1753576533730,0.20332003,118040.0,118030.0,0.71100699]
[1753576533863,0.20332003,118040.0,118030.0,0.68663493]
[1753576534079,0.19484876,118040.0,118030.0,0.53854493]
[1753576534289,0.18843728,118040.0,118030.0,0.66730493]
[1753576534491,0.18843728,118040.0,118030.0,0.67577706]
[1753576534695,0.18843728,118040.0,118030.0,0.35823021]
[1753576534892,0.18843728,118040.0,118030.0,0.67577713]
[1753576535105,0.01900319,118040.0,118030.0,0.69272103]
[1753576535312,0.01900319,118040.0,118030.0,0.68424926]
[1753576535523,0.01900319,118040.0,118030.0,0.69272132]
[1753576535992,0.02747489,118040.0,118030.0,0.69272132]
[1753576536239,0.01900319,118040.0,118030.0,0.70119323]
[1753576536819,0.01900319,118040.0,118030.0,0.68424926]
[1753576537460,0.01900319,118040.0,118030.0,0.69272132]
[1753576538309,0.02747489,118040.0,118030.0,0.70119331]
[1753576540634,0.01900319,118040.0,118030.0,0.70119295]
[1753576540854,0.01694319,118040.0,118030.0,0.69272104]
[1753576541054,0.02541489,118040.0,118030.0,0.69272104]
[1753576543990,0.21551898,118040.0,118030.0,0.26528086]
[1753576544230,0.20001898,118040.0,118030.0,0.27375306]
[1753576544579,0.20001898,118040.0,118030.0,0.59129998]
[1753576545191,0.20001898,118040.0,118030.0,0.59130013]
[1753576545421,0.20001898,118040.0,118030.0,0.58930013]
[1753576545597,0.20001898,118040.0,118030.0,0.59030013]
[1753576546040,0.19154742,118040.0,118030.0,0.59030013]
[1753576546274,0.19154742,118040.0,118030.0,0.59877233]
[1753576546698,0.19154742,118040.0,118030.0,0.59677233]
[1753576546986,0.19154742,118040.0,118030.0,0.28022541]
[1753576547192,0.19154742,118040.0,118030.0,0.58930013]
[1753576547547,0.19154742,118040.0,118030.0,0.5977724]
[1753576547755,0.18843742,118040.0,118030.0,0.6062446]
[1753576549026,0.18843742,118040.0,118030.0,0.61471637]
[1753576549188,0.01900333,118040.0,118030.0,0.61471601]
[1753576550007,0.01694333,118040.0,118030.0,0.61471565]
[1753576550213,0.01694333,118040.0,118030.0,0.61766565]
[1753576550625,0.01694333,118040.0,118030.0,0.60919374]
[1753576550831,0.01694333,118040.0,118030.0,0.29164682]
[1753576551034,0.01694333,118040.0,118030.0,0.60919374]
[1753576552143,0.01694333,118040.0,118030.0,0.61766565]
[1753576552818,0.18637742,118040.0,118030.0,0.28317483]
[1753576553039,0.18637742,118040.0,118030.0,0.60072175]
[1753576553471,0.18637742,118040.0,118030.0,0.28022483]
[1753576553691,0.18637742,118040.0,118030.0,0.59777175]
[1753576553894,0.19154742,118040.0,118030.0,0.60624374]
[1753576554556,0.19154742,118040.0,118030.0,0.59777175]
[1753576554771,0.01900333,118040.0,118030.0,0.60624374]
[1753576554989,0.01900304,118040.0,118030.0,0.61471565]
[1753576555424,0.02747474,118040.0,118030.0,0.61471565]
[1753576555641,0.02747474,118040.0,118030.0,0.60624374]
[1753576557173,0.02713756,118040.0,118030.0,0.60624374]
[1753576559475,0.02713756,118040.0,118030.0,0.61471565]
[1753576562298,0.02713756,118040.0,118030.0,0.29716873]
[1753576562505,0.02713756,118040.0,118030.0,0.61471565]
[1753576563942,0.02713756,118040.0,118030.0,0.28869682]
[1753576564155,0.19657165,118040.0,118030.0,0.59777175]
[1753576564354,0.21207165,118040.0,118030.0,0.26328086]
[1753576564576,0.21520165,118040.0,118030.0,0.5977724]
[1753576564790,0.19970165,118040.0,118030.0,0.6062446]
[1753576564997,0.19123024,118040.0,118030.0,0.5977724]
[1753576565190,0.19123024,118040.0,118030.0,0.28022548]
[1753576565399,0.19123024,118040.0,118030.0,0.5977724]
[1753576568692,0.19966893,118040.0,118030.0,0.5977724]
[1753576568898,0.19966893,118040.0,118030.0,0.28022548]
[1753576569103,0.19966893,118040.0,118030.0,0.5977724]
[1753576569520,0.19653893,118040.0,118030.0,0.5977724]
[1753576572314,0.19653893,118040.0,118030.0,0.58930013]
[1753576572543,0.5403814,118040.0,118030.0,0.02563]
[1753576572790,0.5636514,118040.0,118030.0,0.13068]
[1753576574997,0.9036514,118040.0,118030.0,0.13068]
[1753576577924,0.92110042,118040.0,118030.0,0.002]
[1753576578126,0.92110042,118040.0,118030.0,0.13068]
[1753576580217,1.04978042,118040.0,118030.0,0.13068]
[1753576581178,0.7322335,118040.0,118030.0,0.13068]
[1753576581391,1.04978042,118040.0,118030.0,0.13068]
[1753576581652,0.6776635,118040.0,118030.0,0.15512]
[1753576581829,0.99208042,118040.0,118030.0,0.15712]
[1753576582029,0.86340042,118040.0,118030.0,0.15712]
[1753576582518,0.5458535,118040.0,118030.0,0.15712]
[1753576584702,0.5458535,118040.0,118030.0,0.32656844]
[1753576585381,0.37385293,118040.0,118030.0,0.66419984]
[1753576585600,0.36538094,118040.0,118030.0,0.70407197]
[1753576585818,0.35690989,118040.0,118030.0,0.71254388]
[1753576586795,0.36538123,118040.0,118030.0,0.71254388]
[1753576587228,0.36538116,118040.0,118030.0,0.71254388]
[1753576587481,0.54328695,118040.0,118030.0,0.54997536]
[1753576587699,0.54328695,118040.0,118030.0,0.20636086]
[1753576588644,0.54328695,118040.0,118030.0,0.21483321]
[1753576588857,0.53481568,118040.0,118030.0,0.20636086]
[1753576589047,0.53481568,118040.0,118030.0,0.21483321]
[1753576590030,0.53481568,118040.0,118030.0,0.20636086]
[1753576590230,0.53678568,118040.0,118030.0,0.21483321]
[1753576591076,0.53678568,118040.0,118030.0,0.20636086]
[1753576591267,0.53678568,118040.0,118030.0,0.21483321]
[1753576591669,0.53678568,118040.0,118030.0,0.20636086]
[1753576591884,0.53678568,118040.0,118030.0,0.21483321]
[1753576592184,0.53678568,118040.0,118030.0,0.20636086]
[1753576592379,0.52831434,118040.0,118030.0,0.19788844]
[1753576592880,0.52831434,118040.0,118030.0,0.20636086]
[1753576593086,0.52831434,118040.0,118030.0,0.19788844]
[1753576593723,0.52831434,118040.0,118030.0,0.20636086]
[1753576594278,0.52831434,118040.0,118030.0,0.19788844]
[1753576594481,0.52831434,118040.0,118030.0,0.51543536]
[1753576594594,0.52831434,118040.0,118030.0,0.52390778]
[1753576595006,0.52831434,118040.0,118030.0,0.51543536]
[1753576595895,0.51984278,118040.0,118030.0,0.51543536]
[1753576597092,0.52295278,118040.0,118030.0,0.51543536]
[1753576597764,0.8790697,118040.0,118030.0,0.13076]
[1753576597994,0.8955697,118040.0,118030.0,0.13076]
[1753576599669,0.8955697,118040.0,118030.0,0.002]
[1753576600251,1.0243297,118040.0,118030.0,0.002]
[1753576601931,1.0243297,118040.0,118030.0,0.001]
[1753576602595,0.17792079,118030.0,118020.0,0.50956866]
[1753576602818,0.64470771,118030.0,118020.0,0.02256]
[1753576603043,0.17793594,118020.0,118010.0,0.33635716]
[1753576603282,0.17793594,118020.0,118010.0,0.33840716]
[1753576603505,0.17793594,118020.0,118010.0,0.34688094]
[1753576603819,0.17793594,118020.0,118010.0,0.34688101]
[1753576604241,0.17793594,118020.0,118010.0,0.35535479]
[1753576604492,0.17793594,118020.0,118010.0,0.67295027]
[1753576604705,0.17793594,118020.0,118010.0,0.66447649]
[1753576605332,0.17793594,118020.0,118010.0,0.34792957]
[1753576605746,0.18301594,118020.0,118010.0,0.15437856]
[1753576605970,0.18301594,118020.0,118010.0,0.15537856]
[1753576613697,0.18301594,118020.0,118010.0,0.16385241]
[1753576614547,0.18301594,118020.0,118010.0,0.48139933]
[1753576616333,0.18301594,118020.0,118010.0,0.47292548]
[1753576617620,0.18301594,118020.0,118010.0,0.15537856]
[1753576617850,0.18301594,118020.0,118010.0,0.47292548]
[1753576618908,0.18301594,118020.0,118010.0,0.64240264]
[1753576619147,0.18301594,118020.0,118010.0,0.65087649]
[1753576619821,0.17990594,118020.0,118010.0,0.65087649]
[1753576620013,0.17990594,118020.0,118010.0,0.64240264]
[1753576621129,0.17990594,118020.0,118010.0,0.65087649]
[1753576622408,0.17990594,118020.0,118010.0,0.64240264]
[1753576626205,0.17990594,118020.0,118010.0,0.65087649]
[1753576626416,0.17990594,118020.0,118010.0,0.32485572]
[1753576626627,0.17990594,118020.0,118010.0,0.64240264]
[1753576628342,0.17990594,118020.0,118010.0,0.02665856]
[1753576628343,0.18312594,118020.0,118010.0,0.02665856]
[1753576628548,0.18312594,118020.0,118010.0,0.34215548]
[1753576630612,0.18312594,118020.0,118010.0,0.34415548]
[1753576633522,0.18312594,118020.0,118010.0,0.02660856]
[1753576633726,0.18312594,118020.0,118010.0,0.34415548]
[1753576640926,0.18312594,118020.0,118010.0,0.52210649]
[1753576641993,0.17990594,118020.0,118010.0,0.52210649]
[1753576642654,0.17990594,118020.0,118010.0,0.51363264]
[1753576643287,0.1714328,118020.0,118010.0,0.51363264]
[1753576646003,0.1714328,118020.0,118010.0,0.34415548]
[1753576646606,0.1745028,118020.0,118010.0,0.34415548]
[1753576647216,0.1714328,118020.0,118010.0,0.34415548]
[1753576657415,0.1714328,118020.0,118010.0,0.02660856]
[1753576657634,0.1714328,118020.0,118010.0,0.34415548]
[1753576658780,0.00197,118020.0,118010.0,0.53905334]
[1753576658997,0.19992127,118020.0,118010.0,0.51363264]
[1753576659197,0.19685127,118020.0,118010.0,0.52210642]
[1753576659399,0.18837857,118020.0,118010.0,0.35262933]
[1753576660039,0.17990579,118020.0,118010.0,0.35580933]
[1753576663271,0.17990579,118020.0,118010.0,0.03826241]
[1753576663474,0.17990579,118020.0,118010.0,0.35580933]
[1753576663670,0.17990579,118020.0,118010.0,0.34733548]
[1753576665552,0.17990579,118020.0,118010.0,0.34415548]
[1753576674274,0.18297579,118020.0,118010.0,0.34415548]
[1753576676668,0.89500271,118020.0,118010.0,0.00204856]
[1753576677089,0.91089423,118020.0,118010.0,0.00204856]
[1753576677529,0.89500271,118020.0,118010.0,0.00204856]
[1753576677736,0.89500271,118020.0,118010.0,0.00104856]
[1753576678160,0.57745579,118020.0,118010.0,0.00104856]
[1753576678789,0.89500271,118020.0,118010.0,4.856e-05]
[1753576679214,0.57745579,118020.0,118010.0,4.856e-05]
[1753576679658,0.59333996,118020.0,118010.0,4.856e-05]
[1753576680779,0.59333977,118020.0,118010.0,4.856e-05]
[1753576683180,0.59333977,118020.0,118010.0,0.02279856]
[1753576684579,0.91088669,118020.0,118010.0,4.856e-05]
[1753576685092,0.91087821,118020.0,118010.0,4.856e-05]
[1753576686123,0.59333129,118020.0,118010.0,4.856e-05]
[1753576687061,0.57745579,118020.0,118010.0,4.856e-05]
[1753576687515,0.59332736,118020.0,118010.0,4.856e-05]
[1753576687744,0.59332736,118020.0,118010.0,0.02279856]
[1753576688269,0.59332703,118020.0,118010.0,0.02279856]
[1753576688725,0.57044703,118020.0,118010.0,0.02279856]
[1753576689636,0.55457579,118020.0,118010.0,0.02279856]
[1753576690928,0.5704463,118020.0,118010.0,0.02279856]
[1753576691793,0.57044506,118020.0,118010.0,0.02279856]
[1753576692064,0.55457579,118020.0,118010.0,0.02279856]
[1753576694312,0.66757579,118020.0,118010.0,0.34034548]
[1753576694543,0.66757579,118020.0,118010.0,0.02279856]
[1753576694770,0.66757579,118020.0,118010.0,0.34034548]
[1753576695217,0.67608387,118020.0,118010.0,0.02279856]
[1753576696625,0.66008387,118020.0,118010.0,0.02279856]
[1753576697410,0.66008387,118020.0,118010.0,0.01779856]
[1753576701330,0.68296387,118020.0,118010.0,0.01779856]
[1753576702510,0.66008387,118020.0,118010.0,0.01779856]
[1753576703458,0.67596231,118020.0,118010.0,0.01779856]
[1753576703976,0.67596231,118020.0,118010.0,0.33534548]
[1753576706281,0.67597034,118020.0,118010.0,0.33534548]
[1753576708723,0.67597116,118020.0,118010.0,0.33534548]
[1753576710748,0.66008387,118020.0,118010.0,0.33534548]
[1753576710972,0.67597175,118020.0,118010.0,0.33534548]
[1753576711655,0.54430175,118020.0,118010.0,0.50694264]
[1753576711864,0.35698107,118020.0,118010.0,0.54192264]
[1753576712074,0.65500387,118020.0,118010.0,0.54192264]
[1753576713362,0.65500387,118020.0,118010.0,0.37244548]
[1753576715362,0.65500387,118020.0,118010.0,0.54192264]
[1753576717043,0.66241823,118020.0,118010.0,0.54192264]
[1753576717454,0.64653088,118020.0,118010.0,0.54192264]
[1753576718676,0.64653088,118020.0,118010.0,0.53874264]
[1753576718677,0.64857088,118020.0,118010.0,0.53874264]
[1753576732044,0.64857088,118020.0,118010.0,0.52324264]
[1753576740247,0.64857088,118020.0,118010.0,0.50694264]
[1753576740509,0.65176088,118020.0,118010.0,0.50694264]
[1753576743745,0.64857088,118020.0,118010.0,0.52334264]
[1753576743952,0.64857088,118020.0,118010.0,0.53874264]
[1753576752335,0.64853586,118020.0,118010.0,0.53874264]
[1753576752578,0.65700871,118020.0,118010.0,0.53874264]
[1753576752869,0.65700871,118020.0,118010.0,0.54721649]
[1753576753294,0.48754591,118020.0,118010.0,0.55569027]
[1753576753526,0.48754591,118020.0,118010.0,0.56416398]
[1753576753736,0.48754591,118020.0,118010.0,0.55569027]
[1753576754165,0.34847256,118020.0,118010.0,0.57558719]
[1753576754284,0.12852,118020.0,118010.0,0.70410719]
[1753576754504,0.13699256,118020.0,118010.0,0.7125804]
[1753576754703,0.00847256,118020.0,118010.0,0.70410719]
[1753576754912,0.50240889,118030.0,118020.0,0.1694628]
[1753576755196,0.51183936,118030.0,118020.0,0.50481972]
[1753576755400,0.51183936,118030.0,118020.0,0.52897972]
[1753576755604,0.66858534,118030.0,118020.0,0.52897972]
[1753576756251,0.66958534,118030.0,118020.0,0.52897972]
[1753576756436,0.5001369,118030.0,118020.0,0.52897972]
[1753576756606,0.5001369,118030.0,118020.0,0.53745286]
[1753576757408,0.5011369,118030.0,118020.0,0.53745286]
[1753576757797,0.50961524,118030.0,118020.0,0.52897972]
[1753576759964,0.50114238,118030.0,118020.0,0.52897972]
[1753576760167,0.50961465,118030.0,118020.0,0.53745278]
[1753576760536,0.50961465,118030.0,118020.0,0.54592577]
[1753576760936,0.50961465,118030.0,118020.0,0.52897972]
[1753576763348,0.50961465,118030.0,118020.0,0.53745286]
[1753576763545,0.51808707,118030.0,118020.0,0.53745286]
[1753576764400,0.51808707,118030.0,118020.0,0.52897972]
[1753576764803,0.51808707,118030.0,118020.0,0.53745286]
[1753576765474,0.51808707,118030.0,118020.0,0.52897972]
[1753576765697,0.51808707,118030.0,118020.0,0.53745286]
[1753576766529,0.51808707,118030.0,118020.0,0.54592592]
[1753576766700,0.51808707,118030.0,118020.0,0.52897972]
[1753576767542,0.51808707,118030.0,118020.0,0.52165286]
[1753576768317,0.51808707,118030.0,118020.0,0.51317972]
[1753576769098,0.50961465,118030.0,118020.0,0.51317972]
[1753576769297,0.37790465,118030.0,118020.0,0.52967972]
[1753576769523,0.514897,118030.0,118020.0,0.2121328]
[1753576769720,0.68434544,118030.0,118020.0,0.52967972]
[1753576770907,0.68434544,118030.0,118020.0,0.2121328]
[1753576771122,0.68434544,118030.0,118020.0,0.52967972]
[1753576773411,0.68434544,118030.0,118020.0,0.53815286]
[1753576773617,0.68434544,118030.0,118020.0,0.51317972]
[1753576774251,0.67587353,118030.0,118020.0,0.51317972]
[1753576774725,0.67895353,118030.0,118020.0,0.51317972]
[1753576777311,0.50642509,118030.0,118020.0,0.52165286]
[1753576777652,0.51489751,118030.0,118020.0,0.51317972]
[1753576777871,0.50642538,118030.0,118020.0,0.1956328]
[1753576778074,0.50642538,118030.0,118020.0,0.51317972]
[1753576778242,0.67895382,118030.0,118020.0,0.1956328]
[1753576778606,0.67795382,118030.0,118020.0,0.51317972]
[1753576778992,0.67695382,118030.0,118020.0,0.51317972]
[1753576780895,0.66848155,118030.0,118020.0,0.51317972]
[1753576781119,0.6600092,118030.0,118020.0,0.51317972]
[1753576783100,0.65153678,118030.0,118020.0,0.34170692]
[1753576783328,0.69269678,118030.0,118020.0,0.34170692]
[1753576783700,0.69269678,118030.0,118020.0,0.02416]
[1753576785493,0.69269678,118030.0,118020.0,0.1936228]
[1753576785697,0.65153678,118030.0,118020.0,0.1936228]
[1753576785977,0.65153678,118030.0,118020.0,0.51116972]
[1753576789495,0.65153678,118030.0,118020.0,0.02416]
[1753576789717,0.67609678,118030.0,118020.0,0.02416]
[1753576791007,0.65153678,118030.0,118020.0,0.02416]
[1753576792050,0.52301678,118030.0,118020.0,0.02416]
[1753576792272,0.65153678,118030.0,118020.0,0.02416]
[1753576792729,0.67609678,118030.0,118020.0,0.02416]
[1753576797048,0.65153678,118030.0,118020.0,0.02416]
[1753576800914,0.65153678,118030.0,118020.0,0.34170692]
[1753576801524,0.65153678,118030.0,118020.0,0.34378692]
[1753576803020,0.65153678,118030.0,118020.0,0.1957028]
[1753576803193,0.65153678,118030.0,118020.0,0.51324972]
[1753576807476,0.65692913,118030.0,118020.0,0.55392286]
[1753576807931,0.65692913,118030.0,118020.0,0.54544972]
[1753576810412,0.65692913,118030.0,118020.0,0.52974972]
[1753576810717,0.66012913,118030.0,118020.0,0.52974972]
[1753576811579,0.66012913,118030.0,118020.0,0.53822286]
[1753576811986,0.66012913,118030.0,118020.0,0.52974972]
[1753576812203,0.66012913,118030.0,118020.0,0.53822286]
[1753576813471,0.49068047,118030.0,118020.0,0.54669592]
[1753576813675,0.51609715,118030.0,118020.0,0.54669592]
[1753576813906,0.51609715,118030.0,118020.0,0.2122028]
[1753576814122,0.51609715,118030.0,118020.0,0.52974972]
[1753576814338,0.51609715,118030.0,118020.0,0.53822286]
[1753576814561,0.51609715,118030.0,118020.0,0.52974972]
[1753576815018,0.67707368,118030.0,118020.0,0.52974972]
[1753576816507,0.67707368,118030.0,118020.0,0.53822286]
[1753576817356,0.66859534,118030.0,118020.0,0.53822286]
[1753576818236,0.66859534,118030.0,118020.0,0.54669592]
[1753576818894,0.4991469,118030.0,118020.0,0.54669592]
[1753576819312,0.4991469,118030.0,118020.0,0.55516891]
[1753576819437,0.4959469,118030.0,118020.0,0.55516891]
[1753576819883,0.4959469,118030.0,118020.0,0.57076891]
[1753576820308,0.4959469,118030.0,118020.0,0.37588692]
[1753576820533,0.48747448,118030.0,118020.0,0.37588692]
[1753576820912,0.65692292,118030.0,118020.0,0.37588692]
[1753576821473,0.65692292,118030.0,118020.0,0.36028692]
[1753576821704,0.52840292,118030.0,118020.0,0.34378692]
[1753576821924,0.66012292,118030.0,118020.0,0.34378692]
[1753576822550,0.53160292,118030.0,118020.0,0.34378692]
[1753576823005,0.66012292,118030.0,118020.0,0.34378692]
[1753576823208,0.53160292,118030.0,118020.0,0.34378692]
[1753576823476,0.54749485,118030.0,118020.0,0.34378692]
[1753576823681,0.67601485,118030.0,118020.0,0.34378692]
[1753576825731,0.68472944,118030.0,118020.0,0.34378692]
[1753576827966,0.68472944,118030.0,118020.0,0.02624]
[1753576828404,0.68472944,118030.0,118020.0,0.34378692]
[1753576828607,0.68472808,118030.0,118020.0,0.34378692]
[1753576829758,0.68472765,118030.0,118020.0,0.34378692]
[1753576843144,0.68472765,118030.0,118020.0,0.02624]